bitfinex-derivatives/quotes_ETHF0:USTF0_20260131
["timestamp","ask_amount","ask_price","bid_price","bid_amount"]
[1769870259873,1.91126612,2529.1,2527.1,3.8516836]
[1769870260076,2.10925612,2529.0,2527.1,3.8516836]
[1769870261371,2.0811536,2528.7,2527.1,3.8516836]
[1769870261677,1.8831436,2528.9,2526.7,3.91723356]
[1769870261878,0.19799,2529.0,2526.7,3.91723356]
[1769870263680,1.88713702,2529.4,2526.7,3.91723356]
[1769870263979,0.00399342,2529.4,2526.7,3.91723356]
[1769870264380,0.00399342,2529.4,2527.1,3.91248213]
[1769870265171,0.00399342,2529.4,2526.8,2.321]
[1769870265172,1.86949884,2529.4,2527.3,3.91248213]
[1769870266077,0.00399342,2529.4,2527.3,3.91248213]
[1769870266478,0.19784,2530.9,2527.3,3.91248213]
[1769870266679,0.19785,2530.8,2527.6,3.91248213]
[1769870266881,0.19785,2530.8,2527.7,3.91248213]
[1769870267282,3.562,2531.2,2527.9,4.11055213]
[1769870267576,0.00440118,2531.2,2528.1,4.11054213]
[1769870267788,0.00440118,2531.2,2528.6,3.91248213]
[1769870267988,0.00440118,2531.2,2528.6,3.91614823]
[1769870268575,2.12780223,2530.5,2528.6,3.91614823]
[1769870268782,1.92992223,2530.4,2528.6,3.91614823]
[1769870268983,1.92992223,2530.0,2528.6,0.0036661]
[1769870269375,1.92992223,2530.0,2528.1,3.91248213]
[1769870269582,2.12423613,2529.1,2527.2,3.91248213]
[1769870270278,1.92625613,2528.8,2526.7,3.91248213]
[1769870270485,0.00440764,2528.8,2526.8,3.91248213]
[1769870272486,1.94076247,2528.4,2526.7,0.00290559]
[1769870272684,1.94076247,2528.4,2526.7,3.91538772]
[1769870273079,0.19803,2528.5,2526.7,3.91538772]
[1769870273280,0.00440764,2528.8,2526.7,3.91538772]
[1769870273490,0.00440764,2528.8,2527.1,3.91248213]
[1769870273678,1.94517011,2529.5,2527.1,3.91248213]
[1769870273879,1.94517011,2529.9,2527.1,3.91248213]
[1769870274177,0.19797,2529.2,2527.1,3.91248213]
[1769870274380,1.73181838,2528.7,2526.7,0.00290559]
[1769870274581,1.73181838,2528.2,2526.7,0.00290559]
[1769870274983,1.73181838,2528.1,2526.1,3.91248213]
[1769870275283,0.19809,2527.7,2525.6,3.91248213]
[1769870275687,1.92700279,2527.7,2525.6,3.91248213]
[1769870275989,0.19809,2527.7,2525.6,3.91248213]
[1769870276192,1.72891279,2528.3,2525.6,3.91732752]
[1769870276686,1.96078628,2527.8,2525.6,3.91732752]
[1769870277382,1.96078628,2527.7,2525.6,3.91732752]
[1769870277788,1.96083628,2527.1,2525.6,0.00484539]
[1769870277989,0.19817,2526.8,2525.6,0.00484539]
[1769870278185,0.00446188,2526.8,2525.6,0.00484539]
[1769870278589,0.00446188,2526.8,2525.6,3.91732752]
[1769870278791,2.14311321,2528.8,2525.6,3.91732752]
[1769870278792,2.16839533,2531.3,2525.8,3.91248213]
[1769870278992,24.61662055,2531.5,2528.2,3.91248213]
[1769870278993,3.64494981,2531.5,2528.2,3.91248213]
[1769870279292,3.64494981,2531.5,2529.3,3.91248213]
[1769870279492,3.64494981,2531.5,2529.5,4.11042213]
[1769870279894,3.64795888,2531.5,2529.5,0.00511142]
[1769870280583,3.64795888,2531.5,2528.5,7.0374337]
[1769870280791,3.64494981,2531.0,2528.4,0.19803]
[1769870281000,3.64494981,2531.0,2528.6,0.19802]
[1769870281398,0.19784,2530.9,2528.6,0.19802]
[1769870281589,3.64494981,2530.5,2527.5,7.0374337]
[1769870281896,3.64494981,2529.9,2527.8,0.00445957]
[1769870282995,3.562,2530.8,2526.9,7.2355837]
[1769870282996,3.64494981,2529.3,2526.9,0.19815]
[1769870283190,3.64494981,2529.1,2526.2,7.0374337]
[1769870283393,3.64494981,2529.1,2525.5,3.66265716]
[1769870283394,3.64494981,2528.5,2525.8,7.0374337]
[1769870283582,3.64494981,2528.5,2526.1,7.0374337]
[1769870283792,0.00361937,2528.5,2526.8,3.66265716]
[1769870283990,3.64856918,2528.5,2527.6,0.19809]
[1769870284198,3.64856918,2528.5,2526.8,7.0374337]
[1769870284500,3.64856918,2528.5,2526.7,0.19817]
[1769870285198,3.64856918,2528.5,2526.1,0.004036]
[1769870285594,3.64494981,2528.4,2526.1,0.004036]
[1769870285893,3.64494981,2528.4,2524.9,8.60130786]
[1769870285894,3.64494981,2528.2,2525.0,7.0374337]
[1769870286192,3.78961937,2528.5,2525.5,10.74358844]
[1769870286193,3.64494981,2528.0,2525.5,10.74358844]
[1769870286386,3.64494981,2528.0,2525.3,7.0374337]
[1769870286585,3.64494981,2528.0,2525.0,7.0374337]
[1769870286791,3.64494981,2528.0,2525.0,7.04244768]
[1769870286989,3.64494981,2528.0,2525.0,0.00501398]
[1769870287192,3.9388492,2527.6,2525.0,0.00501398]
[1769870287587,3.9388492,2527.6,2525.0,3.70744205]
[1769870287789,3.9388492,2527.6,2525.2,3.70242807]
[1769870287988,3.9388492,2527.6,2525.4,3.70242807]
[1769870288191,0.00361937,2528.5,2525.4,3.70242807]
[1769870288192,0.00361937,2528.5,2526.3,3.70242807]
[1769870288394,0.00361937,2528.5,2526.7,3.84236597]
[1769870288788,0.00361937,2528.5,2526.6,0.19818]
[1769870288789,0.00361937,2528.5,2527.0,3.84236597]
[1769870288995,3.94246857,2528.5,2527.0,0.00436373]
[1769870289194,0.00361937,2528.5,2527.0,3.8467297]
[1769870289597,3.9388492,2527.4,2525.0,7.03084368]
[1769870289897,3.9388492,2527.4,2523.8,3.84236597]
[1769870289898,0.19828,2525.4,2522.7,11.44374535]
[1769870290104,3.9388492,2525.2,2522.3,0.19851]
[1769870290291,3.9388492,2524.9,2521.9,3.84236597]
[1769870290600,3.9388492,2524.6,2521.9,0.00344003]
[1769870290797,6.44559178,2524.0,2521.9,0.00344003]
[1769870290996,3.9388492,2523.9,2521.9,0.00344003]
[1769870291196,3.9388492,2523.7,2521.9,0.00344003]
[1769870291591,3.9388492,2523.7,2522.0,7.91360002]
[1769870291798,3.9388492,2523.7,2521.9,0.00344003]
[1769870292103,0.00506845,2524.9,2520.3,3.84236597]
[1769870292104,3.9388492,2523.2,2520.3,3.84236597]
[1769870292296,3.9388492,2523.2,2520.5,3.84236597]
[1769870292493,3.9388492,2523.2,2520.9,3.84236597]
[1769870292696,3.9388492,2523.2,2520.3,4.04103597]
[1769870292898,3.9388492,2523.2,2521.1,3.84236597]
[1769870293101,3.9388492,2523.2,2520.4,3.84236597]
[1769870293299,40.8,2523.6,2520.3,0.00360315]
[1769870293300,4.1373392,2522.7,2520.3,0.00360315]
[1769870293501,4.1407897,2522.7,2520.3,0.00360315]
[1769870293699,3.9388492,2522.5,2520.3,0.00360315]
[1769870294001,0.0034505,2522.7,2519.3,3.84236597]
[1769870294002,3.9388492,2522.1,2519.3,3.84236597]
[1769870294197,3.9388492,2522.0,2519.3,3.84236597]
[1769870294402,3.9388492,2522.0,2520.0,3.84236597]
[1769870294604,7.5072997,2522.7,2520.3,3.84236597]
[1769870294796,7.5072997,2522.7,2519.7,3.565]
[1769870294797,0.0034505,2522.7,2521.3,3.84236597]
[1769870294997,0.0034505,2522.7,2521.7,3.84236597]
[1769870295199,3.9388492,2523.8,2521.5,7.91360002]
[1769870295399,6.44559178,2523.6,2521.3,0.00508405]
[1769870295600,3.565,2524.1,2519.6,3.84236597]
[1769870295601,3.9388492,2522.7,2519.6,3.84236597]
[1769870295805,3.9388492,2522.1,2519.6,3.84236597]
[1769870296104,3.9388492,2522.1,2518.5,2.70555258]
[1769870296105,3.9388492,2522.1,2519.9,3.84236597]
[1769870296307,7.5048492,2522.6,2520.1,3.84236597]
[1769870296500,7.5048492,2522.6,2520.4,3.84236597]
[1769870296701,3.9388492,2522.5,2520.4,3.84236597]
[1769870297100,3.56928667,2522.6,2519.2,0.00492572]
[1769870297101,4.1374592,2521.1,2519.2,0.00492572]
[1769870297300,2.50674258,2521.7,2519.2,0.00492572]
[1769870297301,3.9388492,2520.9,2519.2,0.00492572]
[1769870297503,4.1375392,2520.1,2516.9,3.84236597]
[1769870297700,3.9388492,2519.5,2516.9,3.81236597]
[1769870297906,3.9388492,2519.3,2516.8,0.19895]
[1769870298105,4.1375392,2520.2,2517.0,0.06909375]
[1769870298306,3.9388492,2518.9,2515.5,0.19905]
[1769870298604,3.9388492,2518.9,2514.5,19.87359518]
[1769870298605,3.9388492,2517.4,2514.2,3.567]
[1769870299006,3.9388492,2517.4,2514.7,0.19911]
[1769870299301,3.568,2518.1,2514.9,2.50674258]
[1769870299501,0.19857,2521.7,2514.9,2.50674258]
[1769870299502,4.1374992,2520.6,2516.3,2.50674258]
[1769870299804,3.9388492,2520.3,2517.4,3.84236597]
[1769870300005,4.1375292,2520.3,2517.6,3.84236597]
[1769870300204,4.1375292,2520.3,2517.7,3.84236597]
[1769870300404,4.1375292,2520.3,2517.1,0.19892]
[1769870300405,3.9388492,2520.3,2517.8,3.84236597]
[1769870300705,3.9388492,2519.8,2517.8,3.84678495]
[1769870301106,0.00481783,2520.3,2518.3,3.84236597]
[1769870301296,0.00481783,2520.3,2517.8,0.20327898]
[1769870301297,3.9388492,2521.3,2519.1,3.84236597]
[1769870301500,4.1373992,2521.8,2519.9,3.84236597]
[1769870301702,3.9388492,2521.6,2519.3,3.84236597]
[1769870301907,3.9388492,2521.6,2518.8,0.19879]
[1769870301908,3.9388492,2521.6,2519.7,3.84236597]
[1769870302304,3.9388492,2521.4,2518.6,3.84236597]
[1769870302512,3.57,2521.9,2515.3,11.44374535]
[1769870302513,3.9388492,2520.7,2518.0,3.84236597]
[1769870302706,3.9388492,2520.1,2517.9,0.0036317]
[1769870303009,3.9388492,2520.1,2518.2,3.84236597]
[1769870303209,3.9388492,2520.1,2518.9,6.39075655]
[1769870303406,3.9388492,2521.2,2519.5,3.84236597]
[1769870303708,3.9388492,2521.2,2517.9,0.0036317]
[1769870303709,0.19865,2520.6,2518.7,3.84236597]
[1769870303910,3.9388492,2520.5,2518.7,3.84236597]
[1769870304299,4.1375292,2520.3,2518.2,3.84236597]
[1769870304506,3.9388492,2520.0,2518.2,3.84236597]
[1769870304808,3.9388492,2519.8,2517.9,3.84599767]
[1769870305005,3.94394576,2519.8,2517.9,3.84599767]
[1769870305200,3.9388492,2519.6,2517.9,0.0036317]
[1769870305406,3.9388492,2519.3,2517.9,0.0036317]
[1769870305603,3.9388492,2518.8,2516.9,3.84236597]
[1769870305908,3.9388492,2518.3,2516.4,3.84236597]
[1769870306299,3.571,2519.0,2517.5,6.39075655]
[1769870306498,0.00509656,2519.8,2518.3,3.84236597]
[1769870306709,0.00509656,2519.8,2519.1,6.39075655]
[1769870307008,3.9388492,2519.7,2517.6,3.84236597]
[1769870307200,0.00509656,2519.8,2517.8,3.84236597]
[1769870307401,4.1375792,2519.6,2517.7,6.39075655]
[1769870307709,0.19884,2518.2,2516.4,3.84236597]
[1769870307910,3.9388492,2518.7,2516.4,3.84236597]
[1769870308209,4.1376892,2518.2,2515.6,3.84236597]
[1769870308509,3.572,2518.6,2515.6,3.84236597]
[1769870308510,4.1377192,2517.8,2515.6,3.84236597]
[1769870308709,3.9388492,2518.5,2516.3,3.84236597]
[1769870308912,0.00359188,2517.8,2516.7,3.84236597]
[1769870309208,4.1376692,2518.5,2516.3,3.84236597]
[1769870309410,3.9388492,2518.3,2516.3,3.84236597]
[1769870309605,4.1376792,2518.3,2516.3,3.84236597]
[1769870309908,3.9388492,2517.8,2515.6,0.00495317]
[1769870310102,3.9388492,2517.6,2515.6,3.84731914]
[1769870310407,0.00336025,2517.8,2516.3,3.84236597]
[1769870310408,3.94220945,2517.8,2516.3,3.84236597]
[1769870310715,0.00336025,2517.8,2516.7,3.84236597]
[1769870311017,0.00336025,2517.8,2516.0,0.19901]
[1769870311018,3.9388492,2519.5,2517.8,3.84236597]
[1769870311205,4.1375892,2519.5,2517.3,3.84236597]
[1769870311405,3.9388492,2520.0,2517.3,3.84236597]
[1769870311811,3.9388492,2519.2,2517.3,3.84236597]
[1769870312112,3.94388938,2519.2,2517.3,3.84696188]
[1769870312314,3.9388492,2518.8,2517.3,0.00459591]
[1769870312613,3.9388492,2519.0,2517.3,10.23312252]
[1769870312806,3.9388492,2519.0,2517.3,3.84236597]
[1769870313010,3.574,2519.1,2517.3,3.84236597]
[1769870313214,4.97921971,2520.7,2518.9,3.84236597]
[1769870313518,1.04037051,2520.7,2518.9,3.84236597]
[1769870313713,3.9388492,2520.6,2518.9,3.84236597]
[1769870314009,3.9388492,2520.1,2518.4,3.84236597]
[1769870314220,4.1375992,2519.3,2517.4,3.84236597]
[1769870314404,4.1375992,2519.3,2515.8,2.50674258]
[1769870314405,3.9388492,2518.4,2516.1,3.84236597]
[1769870314610,3.9388492,2517.4,2514.9,3.84236597]
[1769870314811,3.9388492,2517.6,2515.1,3.84236597]
[1769870315012,3.9388492,2516.9,2514.5,3.84236597]
[1769870315213,3.9388492,2516.9,2510.4,0.19945]
[1769870315214,3.9388492,2516.6,2512.6,12.2722158]
[1769870315519,3.9388492,2516.6,2513.6,6.39075655]
[1769870315520,2.50674258,2516.3,2513.6,6.39075655]
[1769870315813,0.0037775,2516.9,2515.3,3.84236597]
[1769870316012,0.0037775,2516.9,2514.2,3.84236597]
[1769870316013,3.9426267,2516.9,2514.2,3.84236597]
[1769870316218,3.9426267,2516.9,2513.7,3.84236597]
[1769870316219,0.0037775,2516.9,2513.7,3.84236597]
[1769870316411,3.9388492,2518.2,2515.6,3.84236597]
[1769870316613,3.575,2519.0,2515.6,3.84236597]
[1769870316614,3.9388492,2517.9,2515.6,3.84236597]
[1769870316915,3.92700658,2518.7,2515.7,3.67003388]
[1769870317111,3.92700658,2518.5,2515.7,3.67003388]
[1769870317416,3.92700658,2517.7,2514.7,3.67003388]
[1769870317617,3.92700658,2516.9,2515.5,0.00447193]
[1769870317816,0.19884,2518.2,2513.2,3.575]
[1769870317817,3.92700658,2516.1,2513.2,3.575]
[1769870318016,3.92700658,2516.1,2513.0,3.67003388]
[1769870318017,3.92700658,2514.9,2511.4,3.86940388]
[1769870318210,0.19899,2516.3,2508.8,0.19958]
[1769870318211,3.92700658,2513.8,2510.5,3.67003388]
[1769870318523,3.92700658,2513.5,2510.5,3.67003388]
[1769870318714,0.87133493,2513.7,2509.5,2.50674258]
[1769870318715,3.92700658,2512.9,2509.6,3.67003388]
[1769870319023,3.92700658,2512.7,2509.7,3.67003388]
[1769870319319,4.5374147,2512.8,2510.5,3.67003388]
[1769870319613,0.00282886,2513.5,2511.6,3.67003388]
[1769870319813,4.36416719,2515.4,2511.6,3.67003388]
[1769870319814,3.92700658,2514.6,2512.3,3.67003388]
[1769870320009,0.17425306,2513.4,2512.3,3.67003388]
[1769870320210,4.36416719,2515.4,2510.6,3.576]
[1769870320211,3.92700658,2514.8,2512.4,3.67003388]
[1769870320616,0.78816719,2515.4,2513.1,3.67003388]
[1769870320814,3.577,2516.3,2513.1,3.67003388]
[1769870321015,0.00415632,2515.4,2513.6,3.68017924]
[1769870321521,44.377,2517.1,2513.1,0.00331982]
[1769870321522,3.577,2517.1,2515.4,3.68017924]
[1769870321712,3.74773504,2516.3,2513.3,3.68017924]
[1769870322025,3.74773504,2516.1,2513.4,3.68017924]
[1769870322218,3.74773504,2515.8,2512.8,3.68017924]
[1769870322410,0.19905,2515.5,2512.2,3.68017924]
[1769870322611,3.74773504,2515.3,2512.6,3.68017924]
[1769870323025,3.74773504,2515.1,2512.7,3.68017924]
[1769870323410,3.74773504,2515.1,2512.8,3.68017924]
[1769870323611,0.00358245,2515.8,2513.9,3.68017924]
[1769870323913,3.578,2517.3,2514.8,6.39075655]
[1769870324116,3.74773504,2518.1,2514.9,3.68017924]
[1769870324324,31.13707251,2521.3,2514.8,3.578]
[1769870324325,2.50674258,2520.6,2516.7,3.68017924]
[1769870324615,3.74773504,2520.6,2517.0,3.68017924]
[1769870324817,3.94638504,2520.6,2517.6,3.68017924]
[1769870325122,3.74773504,2520.4,2517.8,3.68017924]
[1769870325322,3.74773504,2519.9,2517.2,3.68017924]
[1769870325522,0.1987,2520.0,2516.7,2.50995131]
[1769870325523,3.74773504,2519.2,2516.7,0.00320873]
[1769870325715,3.74773504,2518.2,2515.4,3.68017924]
[1769870325912,3.74773504,2518.2,2516.1,3.68017924]
[1769870326111,3.74773504,2518.7,2515.7,3.68017924]
[1769870326325,3.74773504,2518.2,2515.7,3.68017924]
[1769870326629,3.578,2520.0,2517.1,3.87909924]
[1769870326815,7.32573504,2520.0,2517.9,3.68017924]
[1769870327017,3.74773504,2519.9,2517.9,3.68017924]
[1769870327213,3.578,2520.0,2518.0,3.68017924]
[1769870327514,31.13707251,2523.2,2517.2,3.578]
[1769870327515,3.74773504,2520.6,2518.2,3.68017924]
[1769870327910,3.7518348,2520.6,2518.2,10.07010455]
[1769870328116,0.00409976,2520.6,2518.9,3.68017924]
[1769870328427,7.32573504,2521.4,2519.6,3.68017924]
[1769870328919,3.578,2521.4,2519.9,10.06577667]
[1769870329219,0.19853,2522.1,2519.9,3.68017924]
[1769870329414,3.94626504,2522.1,2520.1,3.68017924]
[1769870330225,3.75053178,2522.1,2520.1,3.68442871]
[1769870330424,31.13707251,2525.9,2520.1,3.68442871]
[1769870330425,0.1984,2523.8,2521.2,3.68017924]
[1769870330721,31.9080062,2526.4,2522.2,3.68017924]
[1769870330722,3.74773504,2524.7,2522.2,3.68017924]
[1769870331120,3.74773504,2524.7,2522.3,3.68017924]
[1769870331425,3.74773504,2524.7,2521.7,3.576]
[1769870331426,3.74773504,2525.3,2522.6,3.68017924]
[1769870331631,3.75052835,2524.7,2522.0,3.68017924]
[1769870331826,3.75052835,2524.7,2522.2,3.68017924]
[1769870332118,0.00279331,2524.7,2522.8,3.68017924]
[1769870332725,0.00279331,2524.7,2523.7,3.68017924]
[1769870333125,3.74773504,2525.8,2523.7,3.6840421]
[1769870333329,4.51866873,2526.4,2523.9,3.68017924]
[1769870333623,0.77093369,2526.4,2524.5,3.68017924]
[1769870333818,3.74773504,2527.6,2524.9,10.06577667]
[1769870334024,3.74773504,2527.6,2523.7,0.00386286]
[1769870334025,3.74773504,2529.2,2525.1,3.68017924]
[1769870334213,3.74773504,2529.4,2527.1,3.68017924]
[1769870334416,3.74773504,2530.5,2527.1,3.68017924]
[1769870335023,3.74773504,2530.5,2527.3,3.68017924]
[1769870335518,3.75147823,2530.5,2527.3,0.0034684]
[1769870335715,3.74773504,2530.0,2527.3,0.0034684]
[1769870335914,3.74773504,2530.0,2527.3,3.68364764]
[1769870336123,3.74773504,2530.0,2527.3,0.0034684]
[1769870336323,3.74773504,2529.8,2527.3,0.0034684]
[1769870336521,0.00374319,2530.5,2527.3,3.68364764]
[1769870336522,3.74773504,2529.2,2527.3,3.68364764]
[1769870336725,3.74773504,2530.4,2527.3,0.0034684]
[1769870336919,3.74773504,2529.7,2527.3,0.0034684]
[1769870337224,3.74773504,2529.7,2527.3,3.68364764]
[1769870337425,3.74773504,2529.5,2527.3,0.0034684]
[1769870337619,3.74773504,2529.5,2527.4,3.68017924]
[1769870337927,3.74773504,2530.4,2527.8,6.38559743]
[1769870338124,0.19794,2529.6,2527.3,0.0034684]
[1769870338328,3.94568504,2529.5,2527.3,0.0034684]
[1769870338728,3.94568504,2529.5,2523.9,2.51339042]
[1769870338729,3.74773504,2528.5,2525.2,7.25017924]
[1769870339022,3.74773504,2528.5,2522.0,0.39707]
[1769870339023,3.74773504,2528.1,2524.6,3.68017924]
[1769870339218,3.74773504,2527.6,2524.6,3.68017924]
[1769870339419,3.74773504,2527.6,2523.8,3.569]
[1769870339420,3.74773504,2527.6,2524.8,3.68017924]
[1769870339618,3.74773504,2527.0,2523.9,3.68017924]
[1769870339918,3.74773504,2527.0,2524.2,3.68017924]
[1769870340322,3.74773504,2526.8,2523.9,3.68017924]
[1769870340522,3.74773504,2526.1,2523.9,3.68017924]
[1769870340724,3.74773504,2526.7,2524.6,3.68017924]
[1769870340922,3.74773504,2527.3,2524.6,3.68017924]
[1769870341119,3.74773504,2527.3,2524.9,3.68017924]
[1769870341316,0.1982,2526.4,2523.8,3.57383515]
[1769870341520,3.74773504,2525.8,2523.8,3.68501439]
[1769870341725,3.74773504,2526.3,2523.8,3.68501439]
[1769870342021,3.75055874,2525.8,2523.8,0.00483515]
[1769870342223,3.74773504,2525.6,2523.8,0.00483515]
[1769870342418,3.94611504,2524.1,2521.4,3.68017924]
[1769870342620,3.74773504,2524.6,2522.3,3.68017924]
[1769870342821,0.19835,2524.4,2521.4,3.68017924]
[1769870343023,3.74773504,2524.3,2521.5,3.68017924]
[1769870343329,3.74773504,2524.3,2522.0,3.68017924]
[1769870343527,3.74773504,2524.3,2521.0,2.325]
[1769870343528,3.74773504,2525.3,2522.8,3.68017924]
[1769870343724,3.94602504,2525.2,2522.8,3.68017924]
[1769870343924,3.94602504,2525.2,2522.3,3.68017924]
[1769870344120,3.568,2525.5,2523.2,3.68017924]
[1769870344320,3.74773504,2525.4,2523.2,3.68017924]
[1769870344527,3.94605504,2524.8,2523.2,0.00494815]
[1769870344722,3.74773504,2524.2,2521.9,3.68017924]
[1769870345022,3.74773504,2524.2,2520.7,3.568]
[1769870345023,3.74773504,2524.8,2522.1,3.68017924]
[1769870345222,0.00299318,2525.8,2522.6,3.68017924]
[1769870345433,0.00299318,2525.8,2523.2,3.87861924]
[1769870345729,3.74773504,2527.8,2525.8,3.68017924]
[1769870345923,3.74773504,2528.4,2525.8,3.68017924]
[1769870346119,0.19798,2529.2,2525.3,3.568]
[1769870346120,3.94573504,2528.9,2526.5,6.38559743]
[1769870346323,3.94573504,2528.9,2526.6,3.68017924]
[1769870346528,0.198,2528.9,2526.6,3.68017924]
[1769870346724,0.19806,2528.1,2525.9,3.68017924]
[1769870346924,3.63456482,2528.0,2526.5,0.00283576]
[1769870347326,3.63456482,2528.0,2526.6,6.38559743]
[1769870347529,3.63456482,2527.3,2525.1,3.568]
[1769870347727,3.63456482,2526.4,2524.1,3.64165075]
[1769870347930,3.83275482,2526.4,2524.1,3.64165075]
[1769870348129,3.63456482,2526.2,2524.1,3.64165075]
[1769870348329,3.83276482,2526.3,2524.1,3.64165075]
[1769870348730,3.83591076,2526.3,2524.1,3.64517938]
[1769870348931,3.83591076,2526.3,2524.5,6.38559743]
[1769870349131,3.83591076,2526.3,2524.1,3.64517938]
[1769870349132,3.63456482,2525.5,2524.1,0.00352863]
[1769870349435,3.63456482,2525.6,2524.1,0.00352863]
[1769870350035,3.63456482,2526.2,2524.1,0.00352863]
[1769870350434,3.63771076,2526.3,2524.1,3.64517938]
[1769870350633,0.00314594,2526.3,2524.9,6.38559743]
[1769870350836,3.63771076,2526.3,2524.2,3.64165075]
[1769870351227,0.00314594,2526.3,2525.2,6.38559743]
[1769870351424,0.00314594,2526.3,2524.1,3.57052863]
[1769870351425,0.00314594,2526.3,2525.4,3.64165075]
[1769870351625,3.63456482,2528.1,2526.2,6.38559743]
[1769870352034,3.63456482,2527.7,2526.2,6.38559743]
[1769870352231,3.63456482,2527.2,2524.6,3.64165075]
[1769870352536,3.63456482,2527.2,2524.0,3.567]
[1769870352537,3.63456482,2526.7,2524.1,3.64165075]
[1769870352727,3.63456482,2526.7,2524.3,3.64165075]
[1769870352930,3.63456482,2526.1,2524.0,9.9559763]
[1769870353133,0.00374025,2527.2,2525.1,3.64165075]
[1769870353337,3.63456482,2527.0,2525.3,6.38559743]
[1769870353533,0.00374025,2527.2,2525.6,3.64165075]
[1769870353934,3.63830507,2527.2,2525.0,3.64165075]
[1769870354234,3.63456482,2527.0,2525.0,3.64165075]
[1769870354432,3.63456482,2526.8,2524.3,0.19835]
[1769870354631,3.63456482,2526.8,2524.0,3.57037887]
[1769870354632,3.63456482,2526.6,2524.4,3.64165075]
[1769870354828,3.63830507,2527.2,2525.3,3.64165075]
[1769870355024,0.00374025,2527.2,2525.6,3.64165075]
[1769870355335,3.63456482,2528.4,2526.1,6.38559743]
[1769870355632,3.63456482,2528.4,2526.0,3.64165075]
[1769870355633,3.567,2528.6,2525.6,3.566]
[1769870355830,3.567,2528.6,2522.8,9.97129756]
[1769870355831,3.63456482,2526.1,2523.7,7.20765075]
[1769870356043,3.63456482,2526.1,2523.8,3.64165075]
[1769870356239,3.63456482,2525.5,2523.2,3.64165075]
[1769870356439,3.63456482,2525.1,2522.2,3.64165075]
[1769870356735,3.63456482,2525.1,2521.4,8.42984983]
[1769870356736,3.63456482,2523.5,2520.9,3.64165075]
[1769870356935,3.63881045,2523.5,2520.9,3.64658806]
[1769870357126,3.63881045,2523.5,2521.0,3.64165075]
[1769870357326,0.00424563,2523.5,2521.8,3.64165075]
[1769870357531,0.00424563,2523.5,2522.3,3.64165075]
[1769870357733,3.63881045,2523.5,2521.6,3.64165075]
[1769870358038,3.63881045,2523.5,2521.6,6.38559743]
[1769870358232,0.00424563,2523.5,2522.6,3.64165075]
[1769870358437,0.00424563,2523.5,2521.8,3.64165075]
[1769870359042,3.83285482,2525.2,2522.9,3.64165075]
[1769870359335,3.63456482,2525.7,2522.9,3.64165075]
[1769870359532,3.63456482,2525.7,2523.3,3.64165075]
[1769870359837,0.19823,2525.9,2522.2,3.567]
[1769870359838,3.83279482,2525.9,2523.8,3.64165075]
[1769870360035,3.63456482,2525.7,2523.8,3.6463184]
[1769870360334,3.83284482,2525.4,2523.8,0.00466765]
[1769870360539,3.63456482,2525.1,2523.8,0.00466765]
[1769870360726,3.63456482,2524.8,2523.8,7.65e-06]
[1769870360926,3.63456482,2525.3,2523.8,7.65e-06]
[1769870361128,3.63756814,2525.9,2524.4,5.00443883]
[1769870361333,3.63756814,2525.9,2523.8,3.6416584]
[1769870361334,3.63456482,2525.6,2523.8,3.6416584]
[1769870361729,3.63456482,2525.6,2524.1,5.00443883]
[1769870361933,3.63456482,2525.6,2523.8,7.65e-06]
[1769870362130,0.00300332,2525.9,2523.9,3.64165075]
[1769870362326,3.63456482,2527.5,2525.7,3.64165075]
[1769870362528,3.567,2527.7,2526.2,3.64165075]
[1769870362930,3.83258482,2528.6,2526.9,5.00443883]
[1769870363225,3.83258482,2528.6,2526.8,3.64165075]
[1769870363430,3.6393788,2528.6,2526.8,3.64492006]
[1769870363637,3.63456482,2527.6,2524.7,3.64165075]
[1769870363940,3.63456482,2527.3,2525.0,3.64165075]
[1769870364143,3.63456482,2527.3,2525.1,3.64165075]
[1769870364435,3.63456482,2528.0,2526.4,3.64165075]
[1769870364637,0.19806,2528.1,2526.5,3.64165075]
[1769870364941,0.00481398,2528.6,2526.5,3.64165075]
[1769870365139,0.00481398,2528.6,2526.4,0.00427929]
[1769870365140,0.00481398,2528.6,2527.0,3.64165075]
[1769870365542,0.00481398,2528.6,2527.2,5.00443883]
[1769870365840,3.6393788,2528.6,2527.3,5.00443883]
[1769870366141,3.6393788,2528.6,2526.9,5.00443883]
[1769870366332,3.63456482,2528.0,2526.4,0.00427929]
[1769870366536,3.63456482,2527.5,2526.4,0.00427929]
[1769870366838,3.63456482,2527.3,2525.3,3.64165075]
[1769870367036,3.63456482,2527.1,2525.4,5.00443883]
[1769870367236,3.83270482,2527.1,2524.7,3.64165075]
[1769870367441,3.83270482,2527.1,2525.4,5.00443883]
[1769870367640,3.63456482,2527.8,2525.7,3.64165075]
[1769870367844,0.20284398,2528.6,2526.8,3.64165075]
[1769870368044,0.00481398,2528.6,2527.5,3.64165075]
[1769870368240,0.00481398,2528.6,2527.5,0.00364531]
[1769870368538,3.63456482,2530.0,2528.5,5.00443883]
[1769870368845,0.19793,2529.8,2528.1,3.64165075]
[1769870369039,4.30416982,2530.3,2528.3,3.64165075]
[1769870369236,0.19796,2529.4,2527.5,3.64529606]
[1769870369433,0.0034382,2529.4,2527.5,3.64529606]
[1769870370450,0.73816982,2530.3,2527.7,3.64165075]
[1769870370646,0.73816982,2530.3,2527.7,3.83974075]
[1769870370947,0.73816982,2530.3,2528.3,3.64165075]
[1769870371148,3.565,2531.1,2528.3,3.83969075]
[1769870371451,3.56934887,2531.1,2528.5,3.83968075]
[1769870371646,3.56934887,2531.1,2528.7,3.64165075]
[1769870371838,3.83241482,2530.8,2528.7,3.64165075]
[1769870372247,3.83243482,2530.6,2528.3,3.64165075]
[1769870372437,3.56934887,2531.1,2528.3,3.64165075]
[1769870372640,0.00434887,2531.1,2529.2,3.64165075]
[1769870372842,0.19773,2532.3,2529.5,3.64165075]
[1769870373040,3.63456482,2532.8,2529.5,3.83959075]
[1769870373238,40.8,2533.6,2528.6,8.42984983]
[1769870373239,0.19767,2533.1,2529.7,3.64165075]
[1769870373443,3.63456482,2532.8,2529.8,3.64165075]
[1769870373644,3.63456482,2532.0,2529.8,3.64165075]
[1769870373950,3.63456482,2532.0,2528.2,36.94284983]
[1769870373951,3.83239482,2531.0,2528.7,3.64165075]
[1769870374147,3.63456482,2530.8,2528.7,3.64165075]
[1769870374540,0.19784,2530.9,2528.7,3.64165075]
[1769870374944,3.83240482,2530.9,2528.7,3.64480619]
[1769870375947,0.19784,2530.9,2528.7,3.64480619]
[1769870376252,3.63456482,2530.6,2528.7,3.64480619]
[1769870376443,3.83243482,2530.6,2528.7,3.64480619]
[1769870376646,3.63456482,2530.5,2528.7,3.64480619]
[1769870376852,3.9278847,2530.1,2527.0,3.98279161]
[1769870377146,3.9278847,2529.3,2527.0,3.98279161]
[1769870377543,4.1258547,2529.3,2527.0,3.98279161]
[1769870377745,3.562,2530.0,2526.3,3.562]
[1769870377746,3.9278847,2528.6,2526.3,3.562]
[1769870378050,4.1259247,2528.3,2526.3,3.98695737]